[Event "Titled Tuesday Blitz October 18 Late 2022"]
[White "Ozen, Batuhan"]
[Black "Shapiro, Daniel"]
[WhiteFideId "6345123"]
[BlackFideId "2001780"]
[WhiteElo "2393"]
[BlackElo "2213"]
[Result "0-1"]
[Round "10"]
[TimeControl "180+1"]
[Date "2022.10.19"]
[WhiteClock "0:00:04"]
[BlackClock "0:00:18"]

1. d4 {[%clk 0:03:00]}  Nf6 {[%clk 0:02:59]} 2. Nc3 {[%clk 0:03:00]}  d5 {[%clk 0:02:56]} 3. Bg5 {[%clk 0:03:00]}  Nbd7 {[%clk 0:02:53]} 4. f3 {[%clk 0:03:00]}  c5 {[%clk 0:02:49]} 5. e4 {[%clk 0:02:57]}  cxd4 {[%clk 0:02:47]} 6. Qxd4 {[%clk 0:02:57]}  e5 {[%clk 0:02:46]} 7. Qa4 {[%clk 0:02:56]}  d4 {[%clk 0:02:41]} 8. Nd5 {[%clk 0:02:56]}  Bd6 {[%clk 0:02:09]} 9. Bxf6 {[%clk 0:02:44]}  gxf6 {[%clk 0:02:09]} 10. Ne2 {[%clk 0:02:41]}  Kf8 {[%clk 0:02:00]} 11. Ng3 {[%clk 0:02:40]}  Nb6 {[%clk 0:01:50]} 12. Nxb6 {[%clk 0:02:21]}  Qxb6 {[%clk 0:01:44]} 13. Qb3 {[%clk 0:02:19]}  Qa5+ {[%clk 0:01:34]} 14. Kf2 {[%clk 0:02:18]}  Be6 {[%clk 0:01:14]} 15. Bc4 {[%clk 0:02:09]}  Qd2+ {[%clk 0:01:10]} 16. Kf1 {[%clk 0:02:05]}  Rc8 {[%clk 0:01:09]} 17. Bxe6 {[%clk 0:02:02]}  Rxc2 {[%clk 0:01:06]} 18. Qxc2 {[%clk 0:01:44]}  Qxc2 {[%clk 0:01:06]} 19. Bb3 {[%clk 0:01:41]}  Qxb2 {[%clk 0:01:05]} 20. Rd1 {[%clk 0:01:41]}  Bc5 {[%clk 0:00:51]} 21. Rd3 {[%clk 0:01:25]}  b5 {[%clk 0:00:51]} 22. Ne2 {[%clk 0:01:21]}  a5 {[%clk 0:00:47]} 23. Kf2 {[%clk 0:01:20]}  a4 {[%clk 0:00:46]} 24. Bd5 {[%clk 0:01:19]}  Ke7 {[%clk 0:00:41]} 25. Rc1 {[%clk 0:01:17]}  Bd6 {[%clk 0:00:35]} 26. Rc6 {[%clk 0:01:13]}  Rb8 {[%clk 0:00:32]} 27. Ra6 {[%clk 0:01:11]}  Qc2 {[%clk 0:00:29]} 28. Ra7+ {[%clk 0:01:09]}  Kd8 {[%clk 0:00:27]} 29. Ra6 {[%clk 0:00:48]}  Be7 {[%clk 0:00:24]} 30. Rxd4 {[%clk 0:00:35]}  exd4 {[%clk 0:00:24]} 31. Kg3 {[%clk 0:00:34]}  d3 {[%clk 0:00:24]} 32. Nd4 {[%clk 0:00:32]}  Qc1 {[%clk 0:00:22]} 33. Bxf7 {[%clk 0:00:25]}  Qc7+ {[%clk 0:00:19]} 34. f4 {[%clk 0:00:21]}  d2 {[%clk 0:00:18]} 35. Ne6+ {[%clk 0:00:21]}  Kc8 {[%clk 0:00:19]} 36. Nxc7 {[%clk 0:00:18]}  Kxc7 {[%clk 0:00:19]} 37. Ra7+ {[%clk 0:00:07]}  Kd8 {[%clk 0:00:19]} 38. Be6 {[%clk 0:00:05]}  d1=Q {[%clk 0:00:19]} 39. Rd7+ {[%clk 0:00:05]}  Qxd7 {[%clk 0:00:19]} 40. Bxd7 {[%clk 0:00:05]}  Kxd7 {[%clk 0:00:19]} 41. Kg4 {[%clk 0:00:01]}  b4 {[%clk 0:00:20]} 42. Kf5 {[%clk 0:00:02]}  b3 {[%clk 0:00:19]} 43. e5 {[%clk 0:00:03]}  fxe5 {[%clk 0:00:19]} 44. fxe5 {[%clk 0:00:03]}  bxa2 {[%clk 0:00:18]} 45. e6+ {[%clk 0:00:04]}  Kd6 {[%clk 0:00:18]} 0-1


[Site "https://www.chess.com"]

[Event "Titled Tuesday Blitz October 18 Late 2022"]
[White "Pakleza, Zbigniew"]
[Black "Prydun, Andriy"]
[WhiteFideId "1119290"]
[BlackFideId "14145898"]
[WhiteElo "2411"]
[BlackElo "2163"]
[Result "1-0"]
[Round "10"]
[TimeControl "180+1"]
[Date "2022.10.18"]
[WhiteClock "0:01:54"]
[BlackClock "0:00:50"]

1. d4 {[%clk 0:03:00]}  Nf6 {[%clk 0:02:58]} 2. Nf3 {[%clk 0:03:01]}  c5 {[%clk 0:02:57]} 3. c3 {[%clk 0:03:01]}  e6 {[%clk 0:02:50]} 4. Bf4 {[%clk 0:03:01]}  Qb6 {[%clk 0:02:47]} 5. Qb3 {[%clk 0:03:00]}  Nc6 {[%clk 0:02:29]} 6. e3 {[%clk 0:03:00]}  Qa5 {[%clk 0:01:48]} 7. Nbd2 {[%clk 0:02:58]}  d5 {[%clk 0:01:45]} 8. Be2 {[%clk 0:02:53]}  Be7 {[%clk 0:01:42]} 9. h3 {[%clk 0:02:53]}  O-O {[%clk 0:01:39]} 10. O-O {[%clk 0:02:51]}  a6 {[%clk 0:01:37]} 11. Ne5 {[%clk 0:02:41]}  Ra7 {[%clk 0:01:05]} 12. Qd1 {[%clk 0:02:22]}  Bd7 {[%clk 0:01:04]} 13. Bg5 {[%clk 0:02:01]}  Re8 {[%clk 0:01:01]} 14. Bxf6 {[%clk 0:02:00]}  gxf6 {[%clk 0:00:51]} 15. Nxd7 {[%clk 0:02:00]}  b6 {[%clk 0:00:52]} 16. Nb3 {[%clk 0:01:54]}  Qa4 {[%clk 0:00:50]} 17. Nxb6 {[%clk 0:01:54]} 1-0


[Site "https://www.chess.com"]

[Event "Titled Tuesday Blitz October 18 Late 2022"]
[White "Pap, Gyula"]
[Black "Al-Tarboush, Ward"]
[WhiteFideId "725323"]
[BlackFideId "7601450"]
[WhiteElo "2519"]
[BlackElo "2269"]
[Result "0-1"]
[Round "10"]
[TimeControl "180+1"]
[Date "2022.10.18"]
[WhiteClock "0:02:37"]
[BlackClock "0:02:33"]

1. b3 {[%clk 0:03:00]}  e5 {[%clk 0:02:59]} 2. Bb2 {[%clk 0:03:01]}  Nc6 {[%clk 0:02:59]} 3. e3 {[%clk 0:03:01]}  Nf6 {[%clk 0:02:59]} 4. Bb5 {[%clk 0:03:01]}  Bd6 {[%clk 0:02:59]} 5. Na3 {[%clk 0:03:01]}  Na5 {[%clk 0:02:54]} 6. Be2 {[%clk 0:03:01]}  a6 {[%clk 0:02:51]} 7. c4 {[%clk 0:02:55]}  Qe7 {[%clk 0:02:49]} 8. Nb1 {[%clk 0:02:54]}  b5 {[%clk 0:02:46]} 9. cxb5 {[%clk 0:02:41]}  axb5 {[%clk 0:02:47]} 10. Bxb5 {[%clk 0:02:42]}  Bb7 {[%clk 0:02:46]} 11. Nf3 {[%clk 0:02:42]}  O-O {[%clk 0:02:43]} 12. O-O {[%clk 0:02:42]}  e4 {[%clk 0:02:35]} 13. Nd4 {[%clk 0:02:42]}  Qe5 {[%clk 0:02:33]} 14. g3 {[%clk 0:02:37]}  c5 {[%clk 0:02:33]} 0-1


[Site "https://www.chess.com"]

[Event "Titled Tuesday Blitz October 18 Late 2022"]
[White "Papayan, Oleg"]
[Black "Gabrielian, Artur"]
[WhiteFideId "4193911"]
[BlackFideId "4131002"]
[WhiteElo "2153"]
[BlackElo "2432"]
[Result "0-1"]
[Round "10"]
[TimeControl "180+1"]
[Date "2022.10.18"]
[WhiteClock "0:00:01"]
[BlackClock "0:00:49"]

1. e4 {[%clk 0:03:00]}  c5 {[%clk 0:02:59]} 2. Nf3 {[%clk 0:03:01]}  d6 {[%clk 0:02:59]} 3. d4 {[%clk 0:03:01]}  cxd4 {[%clk 0:02:59]} 4. Nxd4 {[%clk 0:03:02]}  Nf6 {[%clk 0:03:00]} 5. Nc3 {[%clk 0:03:02]}  Nc6 {[%clk 0:03:00]} 6. Bg5 {[%clk 0:02:59]}  e6 {[%clk 0:03:00]} 7. Qd2 {[%clk 0:02:58]}  a6 {[%clk 0:03:00]} 8. O-O-O {[%clk 0:02:57]}  Bd7 {[%clk 0:03:00]} 9. f4 {[%clk 0:02:57]}  Be7 {[%clk 0:03:00]} 10. Kb1 {[%clk 0:02:36]}  h6 {[%clk 0:02:54]} 11. Bh4 {[%clk 0:02:24]}  b5 {[%clk 0:02:52]} 12. a3 {[%clk 0:02:18]}  Nxd4 {[%clk 0:02:37]} 13. Qxd4 {[%clk 0:02:16]}  Bc6 {[%clk 0:02:36]} 14. Bd3 {[%clk 0:01:56]}  Rb8 {[%clk 0:02:22]} 15. Rhe1 {[%clk 0:01:41]}  Qb6 {[%clk 0:02:18]} 16. Qxb6 {[%clk 0:01:32]}  Rxb6 {[%clk 0:02:18]} 17. e5 {[%clk 0:01:12]}  dxe5 {[%clk 0:02:17]} 18. fxe5 {[%clk 0:01:13]}  Nd7 {[%clk 0:02:13]} 19. Bxe7 {[%clk 0:01:09]}  Kxe7 {[%clk 0:02:13]} 20. Be4 {[%clk 0:00:58]}  Bxe4 {[%clk 0:02:04]} 21. Rxe4 {[%clk 0:00:57]}  Rc8 {[%clk 0:02:00]} 22. h4 {[%clk 0:00:33]}  Rc5 {[%clk 0:01:54]} 23. Rde1 {[%clk 0:00:25]}  a5 {[%clk 0:01:46]} 24. h5 {[%clk 0:00:25]}  Rbc6 {[%clk 0:01:22]} 25. Rg4 {[%clk 0:00:23]}  Kf8 {[%clk 0:01:15]} 26. Rge4 {[%clk 0:00:23]}  Ke7 {[%clk 0:01:06]} 27. Rg4 {[%clk 0:00:23]}  Nxe5 {[%clk 0:01:00]} 28. Rxg7 {[%clk 0:00:23]}  Nc4 {[%clk 0:01:00]} 29. g4 {[%clk 0:00:11]}  b4 {[%clk 0:00:56]} 30. axb4 {[%clk 0:00:10]}  axb4 {[%clk 0:00:57]} 31. Ne4 {[%clk 0:00:10]}  Re5 {[%clk 0:00:56]} 32. Kc1 {[%clk 0:00:03]}  b3 {[%clk 0:00:52]} 33. c3 {[%clk 0:00:02]}  Ra6 {[%clk 0:00:51]} 34. Kd1 {[%clk 0:00:01]}  Ra1+ {[%clk 0:00:49]} 0-1


[Site "https://www.chess.com"]

[Event "Titled Tuesday Blitz October 18 Late 2022"]
[White "Paravyan, David"]
[Black "Holt, Conrad"]
[WhiteFideId "4194985"]
[BlackFideId "2034387"]
[WhiteElo "2555"]
[BlackElo "2592"]
[Result "1-0"]
[Round "10"]
[TimeControl "180+1"]
[Date "2022.10.18"]
[WhiteClock "0:01:13"]
[BlackClock "0:00:15"]

1. e4 {[%clk 0:03:00]}  e6 {[%clk 0:03:00]} 2. d4 {[%clk 0:02:59]}  d5 {[%clk 0:02:58]} 3. Nc3 {[%clk 0:03:00]}  Nf6 {[%clk 0:02:58]} 4. Bg5 {[%clk 0:02:59]}  dxe4 {[%clk 0:02:58]} 5. Nxe4 {[%clk 0:02:59]}  Be7 {[%clk 0:02:59]} 6. Nxf6+ {[%clk 0:02:59]}  Bxf6 {[%clk 0:02:59]} 7. Bxf6 {[%clk 0:02:59]}  Qxf6 {[%clk 0:03:00]} 8. c3 {[%clk 0:03:00]}  Nc6 {[%clk 0:02:54]} 9. Qf3 {[%clk 0:02:57]}  Qe7 {[%clk 0:02:41]} 10. Qg3 {[%clk 0:02:38]}  O-O {[%clk 0:02:33]} 11. Nf3 {[%clk 0:02:36]}  e5 {[%clk 0:02:22]} 12. dxe5 {[%clk 0:02:36]}  Re8 {[%clk 0:02:06]} 13. O-O-O {[%clk 0:02:36]}  Bf5 {[%clk 0:01:50]} 14. Bc4 {[%clk 0:02:35]}  Qc5 {[%clk 0:01:44]} 15. Qf4 {[%clk 0:02:25]}  b5 {[%clk 0:01:35]} 16. Bxf7+ {[%clk 0:02:24]}  Kxf7 {[%clk 0:01:33]} 17. Qxf5+ {[%clk 0:02:25]}  Kg8 {[%clk 0:01:33]} 18. Ng5 {[%clk 0:02:25]}  Qxe5 {[%clk 0:01:20]} 19. Qxh7+ {[%clk 0:02:06]}  Kf8 {[%clk 0:01:20]} 20. Qh8+ {[%clk 0:01:57]}  Ke7 {[%clk 0:01:19]} 21. Qh4 {[%clk 0:01:58]}  Qf5 {[%clk 0:00:57]} 22. Rhe1+ {[%clk 0:01:55]}  Kf6 {[%clk 0:00:57]} 23. Ne6+ {[%clk 0:01:19]}  Kf7 {[%clk 0:00:51]} 24. Rd7+ {[%clk 0:01:15]}  Re7 {[%clk 0:00:31]} 25. Rxe7+ {[%clk 0:01:11]}  Nxe7 {[%clk 0:00:30]} 26. Nd8+ {[%clk 0:01:12]}  Kg8 {[%clk 0:00:18]} 27. Qxe7 {[%clk 0:01:12]}  Qf4+ {[%clk 0:00:16]} 28. Re3 {[%clk 0:01:13]}  Qxf2 {[%clk 0:00:15]} 29. Qe8+ {[%clk 0:01:13]} 1-0


[Site "https://www.chess.com"]

[Event "Titled Tuesday Blitz October 18 Late 2022"]
[White "Petrovic, Aleksa"]
[Black "Brown, Andrew"]
[WhiteFideId "967629"]
[BlackFideId "3206513"]
[WhiteElo "2242"]
[BlackElo "2245"]
[Result "1-0"]
[Round "10"]
[TimeControl "180+1"]
[Date "2022.10.19"]
[WhiteClock "0:00:49"]
[BlackClock "0:00:17"]

1. d4 {[%clk 0:03:00]}  g6 {[%clk 0:03:00]} 2. c4 {[%clk 0:03:00]}  Bg7 {[%clk 0:02:59]} 3. e4 {[%clk 0:03:01]}  d6 {[%clk 0:02:59]} 4. Nc3 {[%clk 0:03:01]}  Nd7 {[%clk 0:02:59]} 5. Nf3 {[%clk 0:02:53]}  e5 {[%clk 0:02:59]} 6. Be2 {[%clk 0:02:52]}  Ne7 {[%clk 0:02:59]} 7. O-O {[%clk 0:02:51]}  O-O {[%clk 0:02:59]} 8. h3 {[%clk 0:02:49]}  c6 {[%clk 0:02:44]} 9. Be3 {[%clk 0:02:47]}  a5 {[%clk 0:02:41]} 10. Qd2 {[%clk 0:02:44]}  exd4 {[%clk 0:02:39]} 11. Bxd4 {[%clk 0:02:42]}  Ne5 {[%clk 0:02:34]} 12. Rad1 {[%clk 0:02:34]}  Be6 {[%clk 0:02:29]} 13. Nxe5 {[%clk 0:02:26]}  dxe5 {[%clk 0:02:23]} 14. Bc5 {[%clk 0:02:25]}  Qxd2 {[%clk 0:02:17]} 15. Rxd2 {[%clk 0:02:26]}  Rfe8 {[%clk 0:02:17]} 16. Na4 {[%clk 0:02:21]}  Nc8 {[%clk 0:02:05]} 17. b3 {[%clk 0:02:14]}  Bf8 {[%clk 0:02:01]} 18. Bxf8 {[%clk 0:02:12]}  Kxf8 {[%clk 0:02:02]} 19. Rfd1 {[%clk 0:02:11]}  b6 {[%clk 0:01:56]} 20. Bg4 {[%clk 0:02:03]}  Ke7 {[%clk 0:01:30]} 21. Bxe6 {[%clk 0:01:56]}  Kxe6 {[%clk 0:01:28]} 22. Rd8 {[%clk 0:01:54]}  Rxd8 {[%clk 0:01:05]} 23. Rxd8 {[%clk 0:01:55]}  Ke7 {[%clk 0:01:06]} 24. Rh8 {[%clk 0:01:49]}  h5 {[%clk 0:01:06]} 25. Kf1 {[%clk 0:01:39]}  b5 {[%clk 0:01:05]} 26. cxb5 {[%clk 0:01:35]}  cxb5 {[%clk 0:01:06]} 27. Nc3 {[%clk 0:01:35]}  b4 {[%clk 0:00:59]} 28. Nd5+ {[%clk 0:01:34]}  Kd6 {[%clk 0:00:36]} 29. Rd8+ {[%clk 0:01:26]}  Kc5 {[%clk 0:00:32]} 30. Rf8 {[%clk 0:01:12]}  Nb6 {[%clk 0:00:21]} 31. Nxb6 {[%clk 0:01:12]}  Rxf8 {[%clk 0:00:18]} 32. Nd7+ {[%clk 0:01:12]}  Kd4 {[%clk 0:00:18]} 33. Nxf8 {[%clk 0:01:13]}  Kc3 {[%clk 0:00:19]} 34. Nd7 {[%clk 0:00:57]}  Kb2 {[%clk 0:00:17]} 35. Nc5 {[%clk 0:00:49]} 1-0


[Site "https://www.chess.com"]

[Event "Titled Tuesday Blitz October 18 Late 2022"]
[White "Przybylski, Wojciech"]
[Black "Aldokhin, Ivan"]
[WhiteFideId "1117599"]
[BlackFideId "24115720"]
[WhiteElo "2221"]
[BlackElo "2313"]
[Result "1-0"]
[Round "10"]
[TimeControl "180+1"]
[Date "2022.10.19"]
[WhiteClock "0:00:15"]
[BlackClock "0:00:03"]

1. e4 {[%clk 0:03:00]}  c5 {[%clk 0:02:55]} 2. Nf3 {[%clk 0:02:56]}  e6 {[%clk 0:02:56]} 3. d4 {[%clk 0:02:53]}  cxd4 {[%clk 0:02:57]} 4. Nxd4 {[%clk 0:02:53]}  a6 {[%clk 0:02:58]} 5. Bd3 {[%clk 0:02:52]}  Qc7 {[%clk 0:02:59]} 6. O-O {[%clk 0:02:47]}  Nf6 {[%clk 0:02:59]} 7. Re1 {[%clk 0:02:45]}  Bd6 {[%clk 0:02:58]} 8. h3 {[%clk 0:02:45]}  Nc6 {[%clk 0:02:58]} 9. Nxc6 {[%clk 0:02:40]}  dxc6 {[%clk 0:02:58]} 10. Nd2 {[%clk 0:02:39]}  b5 {[%clk 0:02:56]} 11. a4 {[%clk 0:02:39]}  Bb7 {[%clk 0:02:55]} 12. c4 {[%clk 0:02:32]}  b4 {[%clk 0:02:42]} 13. a5 {[%clk 0:02:29]}  O-O-O {[%clk 0:02:38]} 14. c5 {[%clk 0:02:17]}  Bh2+ {[%clk 0:02:36]} 15. Kh1 {[%clk 0:02:11]}  Rxd3 {[%clk 0:02:37]} 16. Qe2 {[%clk 0:02:08]}  Rhd8 {[%clk 0:02:33]} 17. Nc4 {[%clk 0:01:48]}  Be5 {[%clk 0:02:02]} 18. f4 {[%clk 0:01:28]}  Bxf4 {[%clk 0:02:01]} 19. e5 {[%clk 0:01:25]}  Bxc1 {[%clk 0:01:47]} 20. Nd6+ {[%clk 0:01:01]}  R3xd6 {[%clk 0:01:37]} 21. cxd6 {[%clk 0:00:48]}  Qd7 {[%clk 0:01:32]} 22. Raxc1 {[%clk 0:00:47]}  Nd5 {[%clk 0:01:31]} 23. Rc5 {[%clk 0:00:45]}  f6 {[%clk 0:01:26]} 24. Rec1 {[%clk 0:00:40]}  fxe5 {[%clk 0:01:23]} 25. Rxc6+ {[%clk 0:00:28]}  Kb8 {[%clk 0:01:08]} 26. Rc7 {[%clk 0:00:25]}  Qxd6 {[%clk 0:01:06]} 27. Rxg7 {[%clk 0:00:25]}  Nf4 {[%clk 0:01:00]} 28. Qe3 {[%clk 0:00:24]}  Nd5 {[%clk 0:00:35]} 29. Qf3 {[%clk 0:00:21]}  e4 {[%clk 0:00:27]} 30. Qf7 {[%clk 0:00:20]}  Qe7 {[%clk 0:00:03]} 31. Qxe7 {[%clk 0:00:20]}  Nxe7 {[%clk 0:00:03]} 32. Rxe7 {[%clk 0:00:21]}  Rd2 {[%clk 0:00:03]} 33. Rcc7 {[%clk 0:00:16]}  Bd5 {[%clk 0:00:03]} 34. Rcd7 {[%clk 0:00:16]}  Kc8 {[%clk 0:00:04]} 35. Ra7 {[%clk 0:00:16]}  e3 {[%clk 0:00:03]} 36. Re8# {[%clk 0:00:15]} 1-0


[Site "https://www.chess.com"]

[Event "Titled Tuesday Blitz October 18 Late 2022"]
[White "Romero Ruscalleda, Josep"]
[Black "Dzierzak, Radoslaw"]
[WhiteFideId "2231859"]
[BlackFideId "1161407"]
[WhiteElo "2316"]
[BlackElo "2111"]
[Result "1-0"]
[Round "10"]
[TimeControl "180+1"]
[Date "2022.10.19"]
[WhiteClock "0:00:58"]
[BlackClock "0:00:24"]

1. e4 {[%clk 0:03:00]}  c5 {[%clk 0:02:53]} 2. c3 {[%clk 0:03:00]}  d5 {[%clk 0:02:52]} 3. exd5 {[%clk 0:03:00]}  Qxd5 {[%clk 0:02:53]} 4. d4 {[%clk 0:03:01]}  Nc6 {[%clk 0:02:53]} 5. Nf3 {[%clk 0:03:00]}  Bf5 {[%clk 0:02:53]} 6. Be3 {[%clk 0:02:59]}  e6 {[%clk 0:02:50]} 7. Nbd2 {[%clk 0:02:50]}  cxd4 {[%clk 0:02:50]} 8. Nxd4 {[%clk 0:02:47]}  Nxd4 {[%clk 0:02:44]} 9. Bxd4 {[%clk 0:02:47]}  Ne7 {[%clk 0:02:37]} 10. Qb3 {[%clk 0:02:40]}  Qxb3 {[%clk 0:02:30]} 11. axb3 {[%clk 0:02:40]}  Nc6 {[%clk 0:02:18]} 12. Bb5 {[%clk 0:02:38]}  Bd6 {[%clk 0:02:10]} 13. Rxa7 {[%clk 0:02:29]}  Ke7 {[%clk 0:02:04]} 14. Rxb7+ {[%clk 0:02:27]}  Kd8 {[%clk 0:01:59]} 15. O-O {[%clk 0:02:19]}  Nxd4 {[%clk 0:01:56]} 16. cxd4 {[%clk 0:02:18]}  Kc8 {[%clk 0:01:56]} 17. Rxf7 {[%clk 0:02:17]}  Rb8 {[%clk 0:01:52]} 18. Rc1+ {[%clk 0:02:14]}  Kd8 {[%clk 0:01:52]} 19. Rd7+ {[%clk 0:02:13]}  Ke8 {[%clk 0:01:52]} 20. Rxd6+ {[%clk 0:02:10]}  Ke7 {[%clk 0:01:53]} 21. Rd7+ {[%clk 0:02:10]}  Kf6 {[%clk 0:01:53]} 22. Bc4 {[%clk 0:02:04]}  Ra8 {[%clk 0:01:47]} 23. f3 {[%clk 0:02:01]}  Ra2 {[%clk 0:01:47]} 24. Ne4+ {[%clk 0:01:57]}  Kg6 {[%clk 0:01:42]} 25. g4 {[%clk 0:01:54]}  Bxe4 {[%clk 0:01:42]} 26. fxe4 {[%clk 0:01:54]}  Rxb2 {[%clk 0:01:42]} 27. Bxe6 {[%clk 0:01:54]}  Kg5 {[%clk 0:01:42]} 28. Rxg7+ {[%clk 0:01:49]}  Kf4 {[%clk 0:01:42]} 29. d5 {[%clk 0:01:40]}  Ra8 {[%clk 0:01:37]} 30. Rf7+ {[%clk 0:01:32]}  Ke3 {[%clk 0:01:29]} 31. Re1+ {[%clk 0:01:31]}  Kd4 {[%clk 0:01:29]} 32. Rf2 {[%clk 0:01:29]}  Rxb3 {[%clk 0:01:28]} 33. d6 {[%clk 0:01:24]}  Rd3 {[%clk 0:01:28]} 34. d7 {[%clk 0:01:21]}  Ke5 {[%clk 0:01:28]} 35. Bf5 {[%clk 0:01:20]}  Raa3 {[%clk 0:01:12]} 36. Kg2 {[%clk 0:01:18]}  Rac3 {[%clk 0:01:04]} 37. Rb1 {[%clk 0:01:17]}  Rc5 {[%clk 0:00:55]} 38. Rb8 {[%clk 0:01:15]}  h5 {[%clk 0:00:48]} 39. gxh5 {[%clk 0:01:10]}  Rc1 {[%clk 0:00:35]} 40. d8=Q {[%clk 0:01:06]}  Rxd8 {[%clk 0:00:35]} 41. Rxd8 {[%clk 0:01:06]}  Ra1 {[%clk 0:00:29]} 42. Rd5+ {[%clk 0:01:05]}  Kf6 {[%clk 0:00:28]} 43. Bg6+ {[%clk 0:01:04]}  Kg7 {[%clk 0:00:28]} 44. Rf7+ {[%clk 0:00:58]}  Kh6 {[%clk 0:00:24]} 45. Rh7# {[%clk 0:00:58]} 1-0


[Site "https://www.chess.com"]

[Event "Titled Tuesday Blitz October 18 Late 2022"]
[White "Roque Sola, Gisela"]
[Black "Izuzquiza Gonzalez, Javier"]
[WhiteFideId "5120241"]
[BlackFideId "3101029"]
[WhiteElo "1961"]
[BlackElo "2034"]
[Result "0-1"]
[Round "10"]
[TimeControl "180+1"]
[Date "2022.10.19"]
[WhiteClock "0:00:01"]
[BlackClock "0:00:02"]

1. e4 {[%clk 0:03:00]}  c5 {[%clk 0:02:59]} 2. Nf3 {[%clk 0:03:00]}  e6 {[%clk 0:02:59]} 3. d4 {[%clk 0:03:00]}  cxd4 {[%clk 0:03:00]} 4. Nxd4 {[%clk 0:03:00]}  a6 {[%clk 0:03:01]} 5. Nc3 {[%clk 0:02:57]}  Qc7 {[%clk 0:03:01]} 6. a3 {[%clk 0:02:56]}  Nf6 {[%clk 0:03:00]} 7. Be3 {[%clk 0:02:54]}  b5 {[%clk 0:02:56]} 8. f4 {[%clk 0:02:42]}  d6 {[%clk 0:02:52]} 9. Qf3 {[%clk 0:02:36]}  Bb7 {[%clk 0:02:52]} 10. Bd3 {[%clk 0:02:34]}  Nbd7 {[%clk 0:02:49]} 11. O-O {[%clk 0:02:31]}  Be7 {[%clk 0:02:34]} 12. Qg3 {[%clk 0:02:26]}  Nc5 {[%clk 0:02:29]} 13. e5 {[%clk 0:02:12]}  Nh5 {[%clk 0:02:23]} 14. Qh3 {[%clk 0:02:08]}  g6 {[%clk 0:02:19]} 15. exd6 {[%clk 0:01:45]}  Qxd6 {[%clk 0:02:02]} 16. Rad1 {[%clk 0:01:37]}  Qc7 {[%clk 0:01:47]} 17. Nf3 {[%clk 0:01:19]}  Nxd3 {[%clk 0:01:44]} 18. cxd3 {[%clk 0:01:16]}  Nxf4 {[%clk 0:01:40]} 19. Qg4 {[%clk 0:00:54]}  Nd5 {[%clk 0:01:25]} 20. Nxd5 {[%clk 0:00:49]}  Bxd5 {[%clk 0:01:25]} 21. Rc1 {[%clk 0:00:45]}  Qd8 {[%clk 0:01:08]} 22. Ne5 {[%clk 0:00:41]}  Bf6 {[%clk 0:00:58]} 23. Nxf7 {[%clk 0:00:23]}  Kxf7 {[%clk 0:00:48]} 24. Bd4 {[%clk 0:00:20]}  Rc8 {[%clk 0:00:17]} 25. Rxc8 {[%clk 0:00:17]}  Qxc8 {[%clk 0:00:17]} 26. Bxf6 {[%clk 0:00:15]}  Re8 {[%clk 0:00:15]} 27. Qh4 {[%clk 0:00:14]}  Kg8 {[%clk 0:00:15]} 28. Qh6 {[%clk 0:00:14]}  Qd7 {[%clk 0:00:15]} 29. Be5 {[%clk 0:00:13]}  Ba8 {[%clk 0:00:08]} 30. d4 {[%clk 0:00:12]}  Qb7 {[%clk 0:00:08]} 31. Rf2 {[%clk 0:00:11]}  Rc8 {[%clk 0:00:06]} 32. h4 {[%clk 0:00:11]}  Qd7 {[%clk 0:00:04]} 33. h5 {[%clk 0:00:09]}  Be4 {[%clk 0:00:01]} 34. hxg6 {[%clk 0:00:08]}  Bxg6 {[%clk 0:00:02]} 35. Kh2 {[%clk 0:00:08]}  Re8 {[%clk 0:00:02]} 36. Rf6 {[%clk 0:00:06]}  Rc8 {[%clk 0:00:01]} 37. Rxg6+ {[%clk 0:00:06]}  hxg6 {[%clk 0:00:02]} 38. Qxg6+ {[%clk 0:00:07]}  Kf8 {[%clk 0:00:02]} 39. Qh6+ {[%clk 0:00:06]}  Ke8 {[%clk 0:00:03]} 40. Qh8+ {[%clk 0:00:06]}  Ke7 {[%clk 0:00:03]} 41. Qg7+ {[%clk 0:00:06]}  Kd8 {[%clk 0:00:04]} 42. Qf8+ {[%clk 0:00:06]}  Qe8 {[%clk 0:00:05]} 43. Qd6+ {[%clk 0:00:05]}  Qd7 {[%clk 0:00:05]} 44. Bf6+ {[%clk 0:00:06]}  Ke8 {[%clk 0:00:05]} 45. Qe5 {[%clk 0:00:06]}  Qh7+ {[%clk 0:00:05]} 46. Kg3 {[%clk 0:00:04]}  Qf7 {[%clk 0:00:06]} 47. Bg5 {[%clk 0:00:01]}  Qf5 {[%clk 0:00:05]} 48. Qh8+ {[%clk 0:00:01]}  Kd7 {[%clk 0:00:05]} 49. Qg7+ {[%clk 0:00:02]}  Kc6 {[%clk 0:00:05]} 50. Bf4 {[%clk 0:00:02]}  Qf8 {[%clk 0:00:04]} 51. Qe5 {[%clk 0:00:02]}  Kb7 {[%clk 0:00:03]} 52. Qxe6 {[%clk 0:00:01]}  Qe8 {[%clk 0:00:03]} 53. Qd5+ {[%clk 0:00:01]}  Qc6 {[%clk 0:00:03]} 54. Qxc6+ {[%clk 0:00:01]}  Rxc6 {[%clk 0:00:04]} 55. d5 {[%clk 0:00:02]}  Rc2 {[%clk 0:00:03]} 56. d6 {[%clk 0:00:02]}  Rc4 {[%clk 0:00:04]} 57. Kg4 {[%clk 0:00:02]}  Rd4 {[%clk 0:00:04]} 58. Kf5 {[%clk 0:00:03]}  Kc8 {[%clk 0:00:05]} 59. g4 {[%clk 0:00:03]}  Kd7 {[%clk 0:00:05]} 60. g5 {[%clk 0:00:03]}  Rd1 {[%clk 0:00:06]} 61. g6 {[%clk 0:00:03]}  Rg1 {[%clk 0:00:06]} 62. Kf6 {[%clk 0:00:04]}  Ke8 {[%clk 0:00:05]} 63. g7 {[%clk 0:00:03]}  Rg4 {[%clk 0:00:04]} 64. Be5 {[%clk 0:00:02]}  Rg1 {[%clk 0:00:03]} 65. Ke6 {[%clk 0:00:01]}  Rg6+ {[%clk 0:00:02]} 0-1


[Site "https://www.chess.com"]